[Event "Titled Tuesday Blitz December 06 Late 2022"]
[White "Dias, Joao Batista"]
[Black "Rian, Kapriaga"]
[WhiteFideId "2108240"]
[BlackFideId "7103263"]
[WhiteElo "1898"]
[BlackElo "2245"]
[Result "0-1"]
[Round "08"]
[TimeControl "180+1"]
[Date "2022.12.07"]
[WhiteClock "0:00:10"]
[BlackClock "0:00:27"]

1. e4 {[%clk 0:03:00]}  c6 {[%clk 0:02:59]} 2. d4 {[%clk 0:02:58]}  d5 {[%clk 0:02:58]} 3. Bd3 {[%clk 0:02:58]}  dxe4 {[%clk 0:02:58]} 4. Bxe4 {[%clk 0:02:58]}  Nf6 {[%clk 0:02:58]} 5. Bf3 {[%clk 0:02:57]}  Bf5 {[%clk 0:02:57]} 6. Ne2 {[%clk 0:02:57]}  e6 {[%clk 0:02:56]} 7. O-O {[%clk 0:02:57]}  Nbd7 {[%clk 0:02:56]} 8. c3 {[%clk 0:02:58]}  Bd6 {[%clk 0:02:55]} 9. Re1 {[%clk 0:02:58]}  O-O {[%clk 0:02:53]} 10. Nd2 {[%clk 0:02:59]}  Qc7 {[%clk 0:02:51]} 11. Nf1 {[%clk 0:02:59]}  Rfd8 {[%clk 0:02:50]} 12. Nfg3 {[%clk 0:03:00]}  Bg6 {[%clk 0:02:49]} 13. Be3 {[%clk 0:02:58]}  c5 {[%clk 0:02:48]} 14. Qc1 {[%clk 0:02:54]}  cxd4 {[%clk 0:02:48]} 15. Bxd4 {[%clk 0:02:54]}  a6 {[%clk 0:02:42]} 16. Qg5 {[%clk 0:02:39]}  h6 {[%clk 0:02:38]} 17. Qh4 {[%clk 0:02:36]}  Rac8 {[%clk 0:02:30]} 18. Rad1 {[%clk 0:02:34]}  Bc5 {[%clk 0:02:28]} 19. Bxc5 {[%clk 0:02:31]}  Nxc5 {[%clk 0:02:27]} 20. Nd4 {[%clk 0:02:30]}  Nd3 {[%clk 0:02:20]} 21. Re2 {[%clk 0:02:26]}  Nf4 {[%clk 0:02:17]} 22. Red2 {[%clk 0:02:24]}  Rd7 {[%clk 0:02:02]} 23. Nde2 {[%clk 0:02:12]}  Nxe2+ {[%clk 0:01:52]} 24. Bxe2 {[%clk 0:02:09]}  Rcd8 {[%clk 0:01:51]} 25. Rxd7 {[%clk 0:02:04]}  Rxd7 {[%clk 0:01:50]} 26. Rxd7 {[%clk 0:02:04]}  Qxd7 {[%clk 0:01:50]} 27. Qf4 {[%clk 0:01:59]}  Kh7 {[%clk 0:01:44]} 28. h3 {[%clk 0:01:57]}  Nd5 {[%clk 0:01:35]} 29. Qd4 {[%clk 0:01:53]}  Nf6 {[%clk 0:01:28]} 30. Qxd7 {[%clk 0:01:52]}  Nxd7 {[%clk 0:01:28]} 31. Bf3 {[%clk 0:01:50]}  b6 {[%clk 0:01:26]} 32. Kf1 {[%clk 0:01:49]}  Kg8 {[%clk 0:01:26]} 33. Ke2 {[%clk 0:01:49]}  Kf8 {[%clk 0:01:24]} 34. Ke3 {[%clk 0:01:49]}  Ke7 {[%clk 0:01:24]} 35. Ne4 {[%clk 0:01:46]}  Bxe4 {[%clk 0:01:23]} 36. Bxe4 {[%clk 0:01:45]}  Kd6 {[%clk 0:01:23]} 37. Bd3 {[%clk 0:01:41]}  a5 {[%clk 0:01:22]} 38. Be2 {[%clk 0:01:37]}  f5 {[%clk 0:01:19]} 39. f4 {[%clk 0:01:36]}  e5 {[%clk 0:01:18]} 40. fxe5+ {[%clk 0:01:36]}  Kxe5 {[%clk 0:01:17]} 41. Bb5 {[%clk 0:01:32]}  f4+ {[%clk 0:01:15]} 42. Kf3 {[%clk 0:01:31]}  Nc5 {[%clk 0:01:13]} 43. g3 {[%clk 0:01:22]}  fxg3 {[%clk 0:01:12]} 44. Kxg3 {[%clk 0:01:22]}  Ne4+ {[%clk 0:01:11]} 45. Kf3 {[%clk 0:01:19]}  g5 {[%clk 0:01:10]} 46. Bd3 {[%clk 0:00:56]}  Nc5 {[%clk 0:01:09]} 47. Bb5 {[%clk 0:00:52]}  Ne6 {[%clk 0:01:03]} 48. Kg4 {[%clk 0:00:47]}  Nf4 {[%clk 0:01:00]} 49. a3 {[%clk 0:00:43]}  Kf6 {[%clk 0:00:57]} 50. h4 {[%clk 0:00:41]}  h5+ {[%clk 0:00:54]} 51. Kg3 {[%clk 0:00:38]}  Ne6 {[%clk 0:00:48]} 52. hxg5+ {[%clk 0:00:38]}  Kxg5 {[%clk 0:00:47]} 53. Bd7 {[%clk 0:00:33]}  h4+ {[%clk 0:00:46]} 54. Kh2 {[%clk 0:00:32]}  Nf4 {[%clk 0:00:45]} 55. Bc6 {[%clk 0:00:20]}  Kf5 {[%clk 0:00:44]} 56. Bf3 {[%clk 0:00:17]}  Ke5 {[%clk 0:00:44]} 57. Bc6 {[%clk 0:00:17]}  Nd3 {[%clk 0:00:37]} 58. b4 {[%clk 0:00:16]}  Nf4 {[%clk 0:00:34]} 59. bxa5 {[%clk 0:00:15]}  bxa5 {[%clk 0:00:34]} 60. a4 {[%clk 0:00:15]}  Kd6 {[%clk 0:00:33]} 61. Bb5 {[%clk 0:00:15]}  Kc5 {[%clk 0:00:33]} 62. Ba6 {[%clk 0:00:07]}  Kb6 {[%clk 0:00:30]} 63. Bb5 {[%clk 0:00:07]}  Nd5 {[%clk 0:00:29]} 64. Kh3 {[%clk 0:00:07]}  Nxc3 {[%clk 0:00:28]} 65. Kxh4 {[%clk 0:00:06]}  Nxb5 {[%clk 0:00:27]} 66. axb5 {[%clk 0:00:07]}  a4 {[%clk 0:00:27]} 67. Kg3 {[%clk 0:00:08]}  a3 {[%clk 0:00:27]} 68. Kf2 {[%clk 0:00:09]}  a2 {[%clk 0:00:27]} 69. Ke2 {[%clk 0:00:10]}  a1=Q {[%clk 0:00:27]} 0-1


[Site "https://www.chess.com"]

[Event "Titled Tuesday Blitz December 06 Late 2022"]
[White "Eljanov, Pavel"]
[Black "Bazeev, German"]
[WhiteFideId "14102951"]
[BlackFideId "24119350"]
[WhiteElo "2598"]
[BlackElo "2501"]
[Result "0-1"]
[Round "08"]
[TimeControl "180+1"]
[Date "2022.12.06"]
[WhiteClock "0:00:02"]
[BlackClock "0:00:12"]

1. e4 {[%clk 0:03:00]}  c5 {[%clk 0:02:59]} 2. Nf3 {[%clk 0:02:59]}  Nf6 {[%clk 0:03:00]} 3. e5 {[%clk 0:02:57]}  Nd5 {[%clk 0:03:00]} 4. Nc3 {[%clk 0:02:58]}  Nxc3 {[%clk 0:03:01]} 5. dxc3 {[%clk 0:02:58]}  e6 {[%clk 0:03:02]} 6. Bf4 {[%clk 0:02:56]}  Qb6 {[%clk 0:03:03]} 7. b3 {[%clk 0:02:39]}  Qc7 {[%clk 0:03:01]} 8. Qd2 {[%clk 0:02:39]}  Nc6 {[%clk 0:03:01]} 9. O-O-O {[%clk 0:02:36]}  h6 {[%clk 0:03:02]} 10. h4 {[%clk 0:02:36]}  a6 {[%clk 0:03:02]} 11. Qe3 {[%clk 0:02:25]}  b5 {[%clk 0:03:01]} 12. Nd2 {[%clk 0:02:24]}  c4 {[%clk 0:03:01]} 13. Kb1 {[%clk 0:02:15]}  Bb7 {[%clk 0:02:52]} 14. Be2 {[%clk 0:02:12]}  Ne7 {[%clk 0:02:44]} 15. Bf3 {[%clk 0:02:01]}  Rc8 {[%clk 0:02:33]} 16. Bxb7 {[%clk 0:01:52]}  Qxb7 {[%clk 0:02:34]} 17. Ne4 {[%clk 0:01:50]}  Nd5 {[%clk 0:02:30]} 18. Qg3 {[%clk 0:01:42]}  b4 {[%clk 0:02:08]} 19. cxb4 {[%clk 0:01:28]}  Nxb4 {[%clk 0:02:08]} 20. Qf3 {[%clk 0:00:54]}  Qc7 {[%clk 0:01:42]} 21. Rd2 {[%clk 0:00:49]}  Qa5 {[%clk 0:01:36]} 22. a4 {[%clk 0:00:50]}  Nd5 {[%clk 0:01:29]} 23. Rhd1 {[%clk 0:00:46]}  cxb3 {[%clk 0:01:27]} 24. cxb3 {[%clk 0:00:45]}  Be7 {[%clk 0:01:06]} 25. Rxd5 {[%clk 0:00:08]}  exd5 {[%clk 0:01:06]} 26. Rxd5 {[%clk 0:00:08]}  Qc7 {[%clk 0:00:58]} 27. Qd3 {[%clk 0:00:07]}  Qc6 {[%clk 0:00:45]} 28. Nd6+ {[%clk 0:00:05]}  Bxd6 {[%clk 0:00:45]} 29. Rxd6 {[%clk 0:00:06]}  Qxg2 {[%clk 0:00:44]} 30. Rxd7 {[%clk 0:00:04]}  O-O {[%clk 0:00:44]} 31. e6 {[%clk 0:00:04]}  Qg1+ {[%clk 0:00:35]} 32. Ka2 {[%clk 0:00:04]}  Qxf2+ {[%clk 0:00:35]} 33. Bd2 {[%clk 0:00:03]}  fxe6 {[%clk 0:00:15]} 34. Ka3 {[%clk 0:00:02]}  Rf7 {[%clk 0:00:12]} 0-1


[Site "https://www.chess.com"]

[Event "Titled Tuesday Blitz December 06 Late 2022"]
[White "Erzhanov, Arman"]
[Black "Gatterer, Florian"]
[WhiteFideId "4138821"]
[BlackFideId "811688"]
[WhiteElo "2176"]
[BlackElo "2218"]
[Result "1/2-1/2"]
[Round "08"]
[TimeControl "180+1"]
[Date "2022.12.07"]
[WhiteClock "0:00:29"]
[BlackClock "0:01:23"]

1. e4 {[%clk 0:03:00]}  c6 {[%clk 0:02:59]} 2. Ne2 {[%clk 0:02:58]}  d5 {[%clk 0:03:00]} 3. e5 {[%clk 0:02:58]}  d4 {[%clk 0:03:00]} 4. c3 {[%clk 0:02:57]}  c5 {[%clk 0:03:00]} 5. f4 {[%clk 0:02:49]}  Nc6 {[%clk 0:02:58]} 6. d3 {[%clk 0:02:47]}  Bg4 {[%clk 0:02:57]} 7. c4 {[%clk 0:02:47]}  e6 {[%clk 0:02:53]} 8. Nd2 {[%clk 0:02:43]}  Nge7 {[%clk 0:02:49]} 9. g3 {[%clk 0:02:42]}  Nf5 {[%clk 0:02:45]} 10. Ne4 {[%clk 0:02:07]}  Bf3 {[%clk 0:02:35]} 11. Rg1 {[%clk 0:02:07]}  Bxe4 {[%clk 0:02:28]} 12. dxe4 {[%clk 0:02:07]}  Ne3 {[%clk 0:02:17]} 13. Bxe3 {[%clk 0:02:07]}  dxe3 {[%clk 0:02:18]} 14. Qxd8+ {[%clk 0:01:53]}  Rxd8 {[%clk 0:02:19]} 15. Rc1 {[%clk 0:01:35]}  Nd4 {[%clk 0:02:19]} 16. Bg2 {[%clk 0:01:36]}  Be7 {[%clk 0:02:18]} 17. Rc3 {[%clk 0:01:27]}  O-O {[%clk 0:02:16]} 18. Nc1 {[%clk 0:01:15]}  b6 {[%clk 0:02:09]} 19. Kf1 {[%clk 0:01:01]}  g5 {[%clk 0:01:45]} 20. Rxe3 {[%clk 0:00:48]}  gxf4 {[%clk 0:01:46]} 21. gxf4 {[%clk 0:00:48]}  Kh8 {[%clk 0:01:37]} 22. Bf3 {[%clk 0:00:42]}  Nc2 {[%clk 0:01:25]} 23. Rd3 {[%clk 0:00:38]}  Bh4 {[%clk 0:01:24]} 24. Rg4 {[%clk 0:00:33]}  Rxd3 {[%clk 0:01:23]} 25. Nxd3 {[%clk 0:00:29]}  Rd8 {[%clk 0:01:23]} 1/2-1/2


[Site "https://www.chess.com"]

[Event "Titled Tuesday Blitz December 06 Late 2022"]
[White "Fernandez De La Vara, Arnaldo"]
[Black "Korkmaz, Necmettin"]
[WhiteFideId "3518388"]
[BlackFideId "6303285"]
[WhiteElo "2387"]
[BlackElo "2094"]
[Result "1-0"]
[Round "08"]
[TimeControl "180+1"]
[Date "2022.12.07"]
[WhiteClock "0:00:06"]
[BlackClock "0:00:25"]

1. Nf3 {[%clk 0:03:00]}  d5 {[%clk 0:02:59]} 2. c4 {[%clk 0:02:57]}  c6 {[%clk 0:02:59]} 3. b3 {[%clk 0:02:57]}  Nf6 {[%clk 0:02:59]} 4. Bb2 {[%clk 0:02:58]}  Bf5 {[%clk 0:02:58]} 5. g3 {[%clk 0:02:57]}  e6 {[%clk 0:02:58]} 6. Bg2 {[%clk 0:02:58]}  h6 {[%clk 0:02:58]} 7. O-O {[%clk 0:02:59]}  Nbd7 {[%clk 0:02:57]} 8. d4 {[%clk 0:02:59]}  Bd6 {[%clk 0:02:42]} 9. Nc3 {[%clk 0:03:00]}  Ne4 {[%clk 0:02:42]} 10. Nxe4 {[%clk 0:02:57]}  Bxe4 {[%clk 0:02:42]} 11. Nd2 {[%clk 0:02:58]}  Bxg2 {[%clk 0:02:42]} 12. Kxg2 {[%clk 0:02:59]}  O-O {[%clk 0:02:35]} 13. e4 {[%clk 0:02:58]}  dxc4 {[%clk 0:02:31]} 14. Nxc4 {[%clk 0:02:57]}  Bc7 {[%clk 0:02:27]} 15. Qe2 {[%clk 0:02:49]}  c5 {[%clk 0:02:23]} 16. Rac1 {[%clk 0:02:45]}  cxd4 {[%clk 0:02:21]} 17. Bxd4 {[%clk 0:02:43]}  e5 {[%clk 0:02:16]} 18. Bb2 {[%clk 0:02:30]}  Qe7 {[%clk 0:02:13]} 19. Ba3 {[%clk 0:02:24]}  Nc5 {[%clk 0:02:08]} 20. Nxe5 {[%clk 0:02:18]}  Bxe5 {[%clk 0:02:02]} 21. Bxc5 {[%clk 0:02:16]}  Bd6 {[%clk 0:02:02]} 22. Bxd6 {[%clk 0:02:08]}  Qxd6 {[%clk 0:02:03]} 23. Rfd1 {[%clk 0:02:08]}  Qb6 {[%clk 0:01:53]} 24. Rd7 {[%clk 0:02:02]}  Rad8 {[%clk 0:01:44]} 25. Rcc7 {[%clk 0:01:59]}  Rxd7 {[%clk 0:01:43]} 26. Rxd7 {[%clk 0:01:59]}  Qc6 {[%clk 0:01:43]} 27. Qd3 {[%clk 0:01:54]}  Re8 {[%clk 0:01:38]} 28. Qd5 {[%clk 0:01:43]}  Qg6 {[%clk 0:01:08]} 29. f3 {[%clk 0:01:20]}  Re6 {[%clk 0:00:55]} 30. Qxb7 {[%clk 0:00:39]}  h5 {[%clk 0:00:50]} 31. h4 {[%clk 0:00:18]}  Rc6 {[%clk 0:00:48]} 32. Rd2 {[%clk 0:00:15]}  Qh6 {[%clk 0:00:40]} 33. Qd7 {[%clk 0:00:10]}  Rg6 {[%clk 0:00:36]} 34. Qc8+ {[%clk 0:00:08]}  Kh7 {[%clk 0:00:34]} 35. Rd8 {[%clk 0:00:05]}  Rf6 {[%clk 0:00:26]} 36. Rh8+ {[%clk 0:00:04]}  Kg6 {[%clk 0:00:26]} 37. Rxh6+ {[%clk 0:00:05]}  Kxh6 {[%clk 0:00:26]} 38. Qb7 {[%clk 0:00:06]}  Kg6 {[%clk 0:00:27]} 39. Qd5 {[%clk 0:00:06]}  Kh6 {[%clk 0:00:24]} 40. Qg5+ {[%clk 0:00:07]}  Kh7 {[%clk 0:00:25]} 41. Qxf6 {[%clk 0:00:07]}  Kh8 {[%clk 0:00:25]} 42. Qxf7 {[%clk 0:00:06]}  g5 {[%clk 0:00:25]} 43. e5 {[%clk 0:00:07]}  g4 {[%clk 0:00:23]} 44. e6 {[%clk 0:00:08]}  gxf3+ {[%clk 0:00:23]} 45. Kf1 {[%clk 0:00:07]}  a5 {[%clk 0:00:24]} 46. e7 {[%clk 0:00:07]}  a4 {[%clk 0:00:25]} 47. e8=R# {[%clk 0:00:06]} 1-0


[Site "https://www.chess.com"]

[Event "Titled Tuesday Blitz December 06 Late 2022"]
[White "Gallo Garcia, Kemel Antonio"]
[Black "Jobava, Baadur"]
[WhiteFideId "3523896"]
[BlackFideId "13601520"]
[WhiteElo "2359"]
[BlackElo "2582"]
[Result "0-1"]
[Round "08"]
[TimeControl "180+1"]
[Date "2022.12.06"]
[WhiteClock "0:01:40"]
[BlackClock "0:02:39"]

1. c4 {[%clk 0:03:00]}  e5 {[%clk 0:02:59]} 2. g3 {[%clk 0:02:59]}  c6 {[%clk 0:02:59]} 3. d4 {[%clk 0:02:59]}  d6 {[%clk 0:02:59]} 4. Bg2 {[%clk 0:02:53]}  Be7 {[%clk 0:02:57]} 5. Nf3 {[%clk 0:02:53]}  e4 {[%clk 0:02:55]} 6. Nfd2 {[%clk 0:02:53]}  f5 {[%clk 0:02:55]} 7. g4 {[%clk 0:02:50]}  Nf6 {[%clk 0:02:53]} 8. gxf5 {[%clk 0:02:50]}  Bxf5 {[%clk 0:02:53]} 9. Nc3 {[%clk 0:02:47]}  d5 {[%clk 0:02:53]} 10. Nf1 {[%clk 0:02:39]}  Be6 {[%clk 0:02:51]} 11. cxd5 {[%clk 0:02:38]}  cxd5 {[%clk 0:02:51]} 12. Qb3 {[%clk 0:02:30]}  Nc6 {[%clk 0:02:49]} 13. Be3 {[%clk 0:02:16]}  O-O {[%clk 0:02:48]} 14. Ng3 {[%clk 0:01:59]}  Na5 {[%clk 0:02:46]} 15. Qd1 {[%clk 0:01:58]}  Nc4 {[%clk 0:02:46]} 16. Bc1 {[%clk 0:01:58]}  Ng4 {[%clk 0:02:39]} 17. O-O {[%clk 0:01:57]}  Bd6 {[%clk 0:02:39]} 18. b3 {[%clk 0:01:53]}  Qh4 {[%clk 0:02:38]} 19. h3 {[%clk 0:01:51]}  Nxf2 {[%clk 0:02:38]} 20. Rxf2 {[%clk 0:01:50]}  Qxg3 {[%clk 0:02:39]} 21. Rxf8+ {[%clk 0:01:40]}  Rxf8 {[%clk 0:02:39]} 0-1


[Site "https://www.chess.com"]

[Event "Titled Tuesday Blitz December 06 Late 2022"]
[White "Gutkin, Ilya"]
[Black "Moral Garcia, Serafin"]
[WhiteFideId "16203470"]
[BlackFideId "2201925"]
[WhiteElo "2265"]
[BlackElo "2259"]
[Result "1-0"]
[Round "08"]
[TimeControl "180+1"]
[Date "2022.12.07"]
[WhiteClock "0:01:46"]
[BlackClock "0:02:36"]

1. Nf3 {[%clk 0:03:00]}  Nf6 {[%clk 0:02:59]} 2. g3 {[%clk 0:03:01]}  g6 {[%clk 0:02:58]} 3. b3 {[%clk 0:03:01]}  Bg7 {[%clk 0:02:58]} 4. Bb2 {[%clk 0:03:02]}  O-O {[%clk 0:02:59]} 5. Bg2 {[%clk 0:03:03]}  c5 {[%clk 0:02:59]} 6. c4 {[%clk 0:03:03]}  Nc6 {[%clk 0:02:58]} 7. O-O {[%clk 0:03:02]}  d6 {[%clk 0:02:57]} 8. d4 {[%clk 0:03:02]}  Ne4 {[%clk 0:02:57]} 9. Nbd2 {[%clk 0:03:02]}  Nxd2 {[%clk 0:02:54]} 10. Qxd2 {[%clk 0:03:03]}  Bg4 {[%clk 0:02:52]} 11. e3 {[%clk 0:02:14]}  Qd7 {[%clk 0:02:42]} 12. d5 {[%clk 0:01:49]}  Bxf3 {[%clk 0:02:38]} 13. Bxf3 {[%clk 0:01:49]}  Bxb2 {[%clk 0:02:36]} 14. dxc6 {[%clk 0:01:46]} 1-0


[Site "https://www.chess.com"]

[Event "Titled Tuesday Blitz December 06 Late 2022"]
[White "Guzman Moneo, Alberto"]
[Black "Ismayil, Malak"]
[WhiteFideId "2209616"]
[BlackFideId "13412604"]
[WhiteElo "2157"]
[BlackElo "1880"]
[Result "1/2-1/2"]
[Round "08"]
[TimeControl "180+1"]
[Date "2022.12.07"]
[WhiteClock "0:00:15"]
[BlackClock "0:00:21"]

1. c4 {[%clk 0:03:00]}  e5 {[%clk 0:02:53]} 2. Nc3 {[%clk 0:03:00]}  Nf6 {[%clk 0:02:52]} 3. g3 {[%clk 0:02:52]}  d5 {[%clk 0:02:52]} 4. cxd5 {[%clk 0:02:53]}  Nxd5 {[%clk 0:02:53]} 5. Bg2 {[%clk 0:02:53]}  Nxc3 {[%clk 0:02:53]} 6. bxc3 {[%clk 0:02:52]}  Bc5 {[%clk 0:02:54]} 7. Nf3 {[%clk 0:02:47]}  Nc6 {[%clk 0:02:54]} 8. O-O {[%clk 0:02:46]}  O-O {[%clk 0:02:54]} 9. d3 {[%clk 0:02:36]}  Bg4 {[%clk 0:02:52]} 10. h3 {[%clk 0:02:28]}  Bh5 {[%clk 0:02:50]} 11. Rb1 {[%clk 0:02:26]}  Bb6 {[%clk 0:02:50]} 12. c4 {[%clk 0:02:23]}  Re8 {[%clk 0:02:43]} 13. Ba3 {[%clk 0:02:16]}  Qd7 {[%clk 0:02:22]} 14. c5 {[%clk 0:02:13]}  Ba5 {[%clk 0:02:23]} 15. Rxb7 {[%clk 0:02:10]}  Bxf3 {[%clk 0:02:11]} 16. Bxf3 {[%clk 0:02:05]}  Nd4 {[%clk 0:02:11]} 17. Bg2 {[%clk 0:02:00]}  Reb8 {[%clk 0:01:57]} 18. e3 {[%clk 0:01:53]}  Ne6 {[%clk 0:01:43]} 19. Qb3 {[%clk 0:01:43]}  Rxb7 {[%clk 0:01:33]} 20. Qxb7 {[%clk 0:01:44]}  Rd8 {[%clk 0:01:29]} 21. Qxa7 {[%clk 0:01:42]}  Bc3 {[%clk 0:01:30]} 22. Be4 {[%clk 0:01:29]}  g6 {[%clk 0:01:27]} 23. c6 {[%clk 0:01:12]}  Qc8 {[%clk 0:01:21]} 24. Qb7 {[%clk 0:01:11]}  Qa8 {[%clk 0:01:17]} 25. Be7 {[%clk 0:01:07]}  Re8 {[%clk 0:01:10]} 26. Qxa8 {[%clk 0:01:01]}  Rxa8 {[%clk 0:01:09]} 27. Rc1 {[%clk 0:01:01]}  Ba5 {[%clk 0:01:08]} 28. Bf6 {[%clk 0:00:58]}  Bb6 {[%clk 0:01:05]} 29. Bxe5 {[%clk 0:00:55]}  Rxa2 {[%clk 0:01:05]} 30. d4 {[%clk 0:00:55]}  Ra5 {[%clk 0:00:48]} 31. Rb1 {[%clk 0:00:51]}  Kf8 {[%clk 0:00:33]} 32. d5 {[%clk 0:00:51]}  Nc5 {[%clk 0:00:32]} 33. Rxb6 {[%clk 0:00:44]}  cxb6 {[%clk 0:00:23]} 34. c7 {[%clk 0:00:36]}  Ra8 {[%clk 0:00:23]} 35. Bd6+ {[%clk 0:00:24]}  Ke8 {[%clk 0:00:23]} 36. Bxc5 {[%clk 0:00:24]}  bxc5 {[%clk 0:00:23]} 37. d6 {[%clk 0:00:24]}  Ra1+ {[%clk 0:00:08]} 38. Kg2 {[%clk 0:00:24]}  Kd7 {[%clk 0:00:09]} 39. Bc6+ {[%clk 0:00:24]}  Kc8 {[%clk 0:00:08]} 40. Bd5 {[%clk 0:00:20]}  Rd1 {[%clk 0:00:04]} 41. e4 {[%clk 0:00:19]}  c4 {[%clk 0:00:01]} 42. Bxc4 {[%clk 0:00:09]}  Rxd6 {[%clk 0:00:02]} 43. Bxf7 {[%clk 0:00:09]}  Kxc7 {[%clk 0:00:03]} 44. e5 {[%clk 0:00:09]}  Rd2 {[%clk 0:00:03]} 45. e6 {[%clk 0:00:10]}  Kd6 {[%clk 0:00:03]} 46. Kf3 {[%clk 0:00:10]}  Ke7 {[%clk 0:00:03]} 47. Ke3 {[%clk 0:00:11]}  Ra2 {[%clk 0:00:04]} 48. f4 {[%clk 0:00:11]}  Ra3+ {[%clk 0:00:04]} 49. Kf2 {[%clk 0:00:11]}  Kf6 {[%clk 0:00:04]} 50. g4 {[%clk 0:00:11]}  h6 {[%clk 0:00:04]} 51. Kg2 {[%clk 0:00:11]}  Rb3 {[%clk 0:00:03]} 52. h4 {[%clk 0:00:11]}  Rc3 {[%clk 0:00:03]} 53. g5+ {[%clk 0:00:11]}  hxg5 {[%clk 0:00:04]} 54. hxg5+ {[%clk 0:00:11]}  Ke7 {[%clk 0:00:04]} 55. Kf2 {[%clk 0:00:10]}  Ra3 {[%clk 0:00:04]} 56. Ke2 {[%clk 0:00:10]}  Rh3 {[%clk 0:00:04]} 57. Kf2 {[%clk 0:00:10]}  Ra3 {[%clk 0:00:04]} 58. Bxg6 {[%clk 0:00:10]}  Kxe6 {[%clk 0:00:04]} 59. f5+ {[%clk 0:00:10]}  Ke7 {[%clk 0:00:02]} 60. f6+ {[%clk 0:00:10]}  Ke6 {[%clk 0:00:03]} 61. Bh7 {[%clk 0:00:09]}  Ra5 {[%clk 0:00:03]} 62. Bg8+ {[%clk 0:00:09]}  Kf5 {[%clk 0:00:02]} 63. f7 {[%clk 0:00:06]}  Ra8 {[%clk 0:00:02]} 64. Ke3 {[%clk 0:00:05]}  Kxg5 {[%clk 0:00:02]} 65. Ke4 {[%clk 0:00:06]}  Kf6 {[%clk 0:00:03]} 66. Kd5 {[%clk 0:00:06]}  Kg7 {[%clk 0:00:03]} 67. Kd6 {[%clk 0:00:06]}  Kf8 {[%clk 0:00:03]} 68. Kc7 {[%clk 0:00:06]}  Ra1 {[%clk 0:00:03]} 69. Kc6 {[%clk 0:00:06]}  Rd1 {[%clk 0:00:03]} 70. Kc5 {[%clk 0:00:06]}  Rd8 {[%clk 0:00:03]} 71. Kc4 {[%clk 0:00:07]}  Rd1 {[%clk 0:00:03]} 72. Kc3 {[%clk 0:00:07]}  Rd8 {[%clk 0:00:04]} 73. Kc2 {[%clk 0:00:08]}  Rd7 {[%clk 0:00:05]} 74. Kc3 {[%clk 0:00:08]}  Rd6 {[%clk 0:00:06]} 75. Kc4 {[%clk 0:00:09]}  Rd7 {[%clk 0:00:07]} 76. Kc5 {[%clk 0:00:09]}  Rd8 {[%clk 0:00:08]} 77. Kc6 {[%clk 0:00:09]}  Rd1 {[%clk 0:00:08]} 78. Kc5 {[%clk 0:00:10]}  Rf1 {[%clk 0:00:09]} 79. Kc4 {[%clk 0:00:10]}  Rf2 {[%clk 0:00:10]} 80. Kd3 {[%clk 0:00:10]}  Rf6 {[%clk 0:00:11]} 81. Ke4 {[%clk 0:00:11]}  Rh6 {[%clk 0:00:12]} 82. Kf5 {[%clk 0:00:11]}  Ra6 {[%clk 0:00:13]} 83. Ke5 {[%clk 0:00:11]}  Ra3 {[%clk 0:00:14]} 84. Kd5 {[%clk 0:00:11]}  Rh3 {[%clk 0:00:14]} 85. Ke5 {[%clk 0:00:12]}  Rh5+ {[%clk 0:00:15]} 86. Kf6 {[%clk 0:00:12]}  Rh4 {[%clk 0:00:16]} 87. Kg6 {[%clk 0:00:13]}  Ra4 {[%clk 0:00:17]} 88. Kg5 {[%clk 0:00:13]}  Ra6 {[%clk 0:00:18]} 89. Kf5 {[%clk 0:00:13]}  Ra5+ {[%clk 0:00:19]} 90. Ke6 {[%clk 0:00:14]}  Ra6+ {[%clk 0:00:20]} 91. Kf5 {[%clk 0:00:14]}  Ra5+ {[%clk 0:00:21]} 92. Ke6 {[%clk 0:00:15]}  Ra6+ {[%clk 0:00:21]} 93. Kf5 {[%clk 0:00:15]} 1/2-1/2


[Site "https://www.chess.com"]